Cogmind - Beta 11 @@@ ROGUE MODE // 2022.03.27 @ 11:49:26 Player: Wyvric Result: Destroyed by G-73 Enforcer with Heavy Laser Performance ------------- Evolutions (9) 4500 Regions Visited (29) 5800 Robots Destroyed (156) 780 Value Destroyed (6706) 6706 Prototype IDs (39) 780 Alien Tech Used (7) 1400 Bonus (5729) 5729 TOTAL SCORE: 25695 Bonus ------- High Alert Combat Kills 24 Follower Combat Kills 980 Network Hubs Disabled 200 Met Imprinter 300 Met Zhirov 300 Found Hidden Lab 3000 Scanned by Researcher 500 Pursued by Intercept 1000 Friendly Fire -575 Cogmind --------- Core Integrity 0/1600 Matter 300/300 Energy 99/100 System Corruption 8% Temperature Cool (0) Movement Core (50) Location -1/Access Parts ------- > --- POWER (1) -------- (None) > --- PROPULSION (6) --- (None) > --- UTILITY (16) ----- Enhanced Optical Array Advanced Signal Interpreter Advanced Signal Interpreter Improved System Shield > --- WEAPON (2) ------- (None) > --- INVENTORY (5) ---- Gyrokinetic Inverter Huge Storage Unit Peak State ------------ > --- POWER ------------ (None) > --- PROPULSION ------- Gyrokinetic Inverter Gyrokinetic Inverter Gyrokinetic Inverter Gyrokinetic Inverter Combat Antigrav System Combat Antigrav System > --- UTILITY ---------- Compact Battery Enhanced Optical Array Advanced Signal Interpreter Advanced Signal Interpreter Advanced Terrain Scan Processor Reaction Control System Phase Armor Experimental Thermal Shield Advanced Force Field Improved Hacking Suite Improved Hacking Suite Deep Network Scanner Improved System Shield Advanced System Shield System Guard > --- WEAPON ----------- Matter Neutralizer > --- INVENTORY -------- Biometal Heavy Treads Gyrokinetic Inverter Huge Storage Unit Transdimensional Reconstructor [Rating: 156] Favorites ----------- Power Improved Deuterium Engine Engine Improved Deuterium Engine Power Core Fission Core Reactor Heavy Antimatter Reactor Propulsion Armored Huge Wheel Treads Improved Treads Leg Aluminum Leg Wheel Armored Huge Wheel Hover Unit Gyrokinetic Inverter Flight Unit Field Propulsion Array Utility High-capacity Storage Unit Device Improved Sensor Array Storage High-capacity Storage Unit Processor Improved Targeting Computer Hackware Makeshift Hacking Suite Protection Hardened Heavy Armor Plating Artifact Phase Armor Weapon Phasing Sabre Energy Gun Variable Charge Gun Energy Cannon Phase Cannon Ballistic Gun Flak Gun Ballistic Cannon Slug Cannon Launcher Proton Missile Launcher Special Weapon Plasma Cutter Impact Weapon Maul Slashing Weapon Phasing Sabre Special Melee Weapon Datajack Build | -11 -10 -10 -9 -9 -9 -8 -8 -7 -7 -7 -7 -6 -6 -6 -6 -6 -6 -5 -5 -5 -5 -4 -4 -4 -4 -3 -3 -2 -1 ------- Run | Scr Mat Min Mat Min Exi Min Mat Fac Low Low Zio Pro Fac Ext Cet Arc Hub Fac Upp Upp Zhi Pro Fac Arm Lab Res Qua Res Acc Slots Evolved 18 | . . . 2 . . . 2 2 . . . . 2 . . . . 2 . . . . 2 . . 2 . 2 2 Power . | . . . . . . . . . . . . . . . . . . . . . . . . . . . . . . Propulsion 4 | . . . . . . . . . . . . . . . . . . 2 . . . . 2 . . . . . . Utility 14 | . . . 2 . . . 2 2 . . . . 2 . . . . . . . . . . . . 2 . 2 2 Weapon . | . . . . . . . . . . . . . . . . . . . . . . . . . . . . . . Parts Attached 319 | 6 4 10 11 7 1 4 13 17 6 7 6 8 17 15 3 6 9 8 28 23 14 28 23 7 5 4 18 2 9 Power 24 | 1 . 1 2 1 . 2 . 2 . . 2 . 2 1 1 . 1 . . 1 1 . 4 1 . . 1 . . Engine 13 | 1 . 1 2 1 . 1 . 2 . . 1 . 2 . . . . . . 1 . . 1 . . . . . . Core 5 | . . . . . . 1 . . . . 1 . . 1 . . 1 . . . . . 1 . . . . . . Reactor 6 | . . . . . . . . . . . . . . . 1 . . . . . 1 . 2 1 . . 1 . . Propulsion 67 | 2 2 2 2 2 . . 3 3 . 1 . . 1 . . . . 4 4 3 4 16 7 . . 2 8 . 1 Treads 14 | . . . 2 . . . . . . . . . . . . . . 4 3 . . 3 . . . . 1 . 1 Leg 3 | 2 . . . . . . . . . . . . . . . . . . . . 1 . . . . . . . . Wheel 35 | . 2 2 . 2 . . 3 3 . 1 . . 1 . . . . . 1 3 3 13 1 . . . . . . Hover 9 | . . . . . . . . . . . . . . . . . . . . . . . 2 . . . 7 . . Flight 6 | . . . . . . . . . . . . . . . . . . . . . . . 4 . . 2 . . . Utility 142 | 1 1 2 5 3 1 . 8 7 2 1 2 3 12 8 1 5 3 3 14 10 5 11 9 5 2 2 6 2 8 Device 63 | . . 2 1 1 . . 1 1 1 . . 2 5 . . 2 . 2 8 7 3 6 7 4 1 1 2 1 5 Storage 7 | 1 1 . . . 1 . 1 . . . . . 1 . . . . . . . . . . . . . 1 . 1 Processor 12 | . . . 1 . . . 2 2 . . . . . . . . . 1 . . . . 2 1 . 1 1 . 1 Hackware 14 | . . . . . . . . 1 . . . 1 4 1 . 1 1 . . . 1 2 . . 1 . . 1 . Protection 44 | . . . 3 2 . . 4 3 1 1 2 . 2 7 1 2 2 . 6 3 1 3 . . . . . . 1 Artifact 2 | . . . . . . . . . . . . . . . . . . . . . . . . . . . 2 . . Weapon 86 | 2 1 5 2 1 . 2 2 5 4 5 2 5 2 6 1 1 5 1 10 9 4 1 3 1 3 . 3 . . Energy Gun 8 | 1 . . . . . . . . 1 . . . . . . . . . 2 2 2 . . . . . . . . Energy Cannon 16 | . . . 1 . . . . 2 1 2 . . . 2 . . . . 3 . . . . . 2 . 3 . . Ballistic Gun 15 | 1 1 2 . . . 1 1 . . . . . . . . . 1 . 2 5 . . . 1 . . . . . Ballistic Cannon 4 | . . . . . . . . . . . 1 2 1 . . . . . . . . . . . . . . . . Launcher 21 | . . 3 . 1 . 1 1 1 1 1 . 2 . 1 1 . 3 . 3 . . . 2 . . . . . . Special Weapon 6 | . . . . . . . . . . 1 . . . . . . 1 . . 1 2 . . . 1 . . . . Impact Weapon 5 | . . . 1 . . . . 2 1 1 . . . . . . . . . . . . . . . . . . . Slashing Weapon 9 | . . . . . . . . . . . 1 1 1 1 . 1 . 1 . 1 . 1 1 . . . . . . Piercing Weapon . | . . . . . . . . . . . . . . . . . . . . . . . . . . . . . . Special Melee Weapon 2 | . . . . . . . . . . . . . . 2 . . . . . . . . . . . . . . . Unidentified Prototypes 17 | . . . . . . . 1 . . 1 . 1 . . 1 . . . . . 3 . . 1 4 . 4 1 . Corrupted Parts 1 | . . . . . . . . . . . . . . . . . . . 1 . . . . . . . . . . System Corruption 4 | . . . . . . . . . . . . . . . . . . . 4 . . . . . . . . . . Parts Lost 92 | . . 6 4 1 . 3 . . 4 . . . 2 4 . . 3 . 4 12 . 15 2 . . 2 6 . 24 Power 8 | . . 1 1 . . 1 . . . . . . . . . . 1 . . 2 . . . . . . 2 . . Propulsion 21 | . . 2 . . . 1 . . . . . . 1 . . . . . 1 4 . 5 . . . . . . 7 Utility 44 | . . 1 1 . . 1 . . 2 . . . . 4 . . 2 . 1 4 . 8 1 . . 2 1 . 16 Weapon 19 | . . 2 2 1 . . . . 2 . . . 1 . . . . . 2 2 . 2 1 . . . 3 . 1 Highest Loss Streak 15 | . . 6 2 3 . 3 . . 3 . . . 2 4 . . 2 . 2 11 . 11 2 . . 1 2 . 15 To Critical Strikes . | . . . . . . . . . . . . . . . . . . . . . . . . . . . . . . Average Slot Usage (%) 85 | . 83 91 95 87 88 94 93 90 83 84 83 83 78 84 85 85 86 99 99 86 84 80 69 80 75 76 80 76 70 Engine 4 | . 14 14 10 11 11 2 9 7 7 7 6 7 6 1 . . . . . . . . . . . . . . . Core 1 | . . . . . . 7 . . . . . . . 5 1 . 1 5 5 2 . . . . . . . . . Treads 4 | . . . 13 21 . . . . . . . . . . . . . 23 21 8 . . 3 . . . 2 . . Wheel 7 | . 22 27 8 . 22 21 18 13 7 7 7 7 5 6 6 6 6 . . 8 16 11 1 . . . . . . Device 6 | . . 7 13 6 . . . 4 9 7 . 3 5 . . 5 6 9 9 13 10 8 15 19 10 9 6 5 7 Storage 6 | . 14 14 11 11 11 11 9 7 7 7 7 7 6 6 6 6 6 5 5 5 5 4 . . . . 2 . 1 Processor 15 | . . . 5 11 11 11 17 19 23 23 23 19 13 13 13 13 13 16 17 13 11 11 12 15 15 18 19 17 18 Hackware 8 | . . . . . . . . 4 . . . . 23 13 6 8 19 17 11 11 15 16 15 15 17 19 19 18 16 Protection 13 | . . . 12 15 22 19 21 15 12 14 22 21 8 24 33 23 14 6 11 8 11 9 . . . . . . . Energy Cannon 1 | . . . 7 . . . . 3 5 3 . . . 2 6 6 3 . 3 1 . . . . 1 4 2 4 2 Ballistic Gun 1 | . 25 11 . . . 6 . 4 . . . . . . . . 1 5 1 4 . . . 3 3 . . . . Launcher 2 | . . 14 11 . . 2 8 2 4 3 6 4 . . 5 2 4 3 1 . . . . . . . . . . Impact Weapon 2 | . . . 2 11 11 11 9 3 2 7 6 . . . . . . . . . . . . . . . . . . Slashing Weapon 1 | . . . . . . . . . . . . 4 6 4 . 3 1 1 . 1 . . 4 5 5 4 3 . . Naked Turns . | . . . . . . . . . . . . . . . . . . . . . . . . . . . . . . Heaviest Build 117 | 10 46 50 59 54 54 56 73 94 94 87 90 96 95 103 117 117 105 75 87 78 85 85 33 42 33 34 116 67 69 Greatest Support 106 | 20 20 20 40 40 20 20 20 28 28 28 28 28 28 28 28 28 28 99 106 106 52 52 54 54 45 45 76 76 76 Greatest Overweight (x) 5 | 3 3 2 2 2 2 4 3 4 3 3 3 3 3 3 4 4 3 . 3 1 1 5 1 . . 2 1 . . Average Overweight (x) 1 | . . 2 1 1 2 2 2 3 2 2 2 2 2 2 3 3 2 . . . 1 . . . . . . . . Largest Inventory Capacity 25 | 8 20 20 20 20 20 20 20 20 20 20 20 20 20 20 20 20 20 20 20 20 20 20 5 5 5 5 25 5 5 Average Capacity 18 | 7 9 20 20 20 20 20 20 20 20 20 20 20 20 20 20 20 20 20 20 20 20 17 5 5 5 5 19 5 5 Most Carried 25 | 6 11 20 20 20 20 20 20 20 20 20 20 20 20 20 20 20 20 15 20 20 20 20 5 5 5 5 25 3 5 Average Carried 17 | 4 7 14 19 19 19 19 19 19 19 19 19 19 19 19 19 19 18 13 19 15 18 15 4 4 4 5 13 3 4 Final Capacity 20 | 8 20 20 20 20 20 20 20 20 20 20 20 20 20 20 20 20 20 20 20 20 20 5 5 5 5 5 5 5 5 Final Carried 20 | 6 11 20 19 20 20 19 20 20 20 20 19 20 20 20 20 20 15 14 20 17 18 5 5 4 5 5 4 3 2 Class Distribution -------------------- 38% | Mutant 17% | Hacker-Mutant 16% | Derelict-Mutant 9% | Scavenger-Mutant 3% | Wizard-Assassin Dominant Class ---------------- Mutant | -10/Materials Mutant | -10/Mines Mutant | -9/Materials Mutant | -9/Mines Mutant | -9/Exiles Mutant | -8/Mines Mutant | -8/Materials Mutant | -7/Factory Mutant | -7/Lower Caves Mutant | -7/Lower Caves Derelict-Mutant | -7/Zion Derelict-Mutant | -6/Proximity Caves Hacker-Mutant | -6/Factory Hacker-Mutant | -6/Extension Mutant | -6/Cetus Hacker-Mutant | -6/Archives Hacker-Mutant | -6/Hub_04(d) Hacker-Mutant | -5/Factory Scavenger-Mutant | -5/Upper Caves Scavenger-Mutant | -5/Upper Caves Hacker-Mutant | -5/Zhirov Hacker-Skirmisher | -4/Proximity Caves Hacker-Scout | -4/Factory Hacker-Scout | -4/Armory Hacker-Scout | -4/Lab Wizard-Scout | -3/Research Wizard-Assassin | -3/Quarantine Wizard-Mutant | -2/Research Wizard-Mutant | -1/Access Resources | -11 -10 -10 -9 -9 -9 -8 -8 -7 -7 -7 -7 -6 -6 -6 -6 -6 -6 -5 -5 -5 -5 -4 -4 -4 -4 -3 -3 -2 -1 ----------- Run | Scr Mat Min Mat Min Exi Min Mat Fac Low Low Zio Pro Fac Ext Cet Arc Hub Fac Upp Upp Zhi Pro Fac Arm Lab Res Qua Res Acc Matter Collected 4387 | 199 . 349 88 120 . 67 107 273 122 100 60 193 150 186 54 50 108 . 750 353 201 154 269 . . 207 191 . 36 Remotely . | . . . . . . . . . . . . . . . . . . . . . . . . . . . . . . Salvage Created 7714 | . 140 65 313 171 . 116 248 405 156 196 . 584 486 202 181 378 642 . 925 651 600 317 263 . . 156 483 . 36 Parts 360 | . 12 4 31 4 . 11 11 13 13 7 . 21 36 18 3 15 21 . 30 25 32 8 15 . . 6 23 . 1 Haulers Intercepted 1 | . 1 . . . . . . . . . . . . . . . . . . . . . . . . . . . . Recyclers Shooed 3 | . 1 . . . . . . . . . . . . . . . . . . . . . 1 . . . 1 . . Parts Field Recycled . | . . . . . . . . . . . . . . . . . . . . . . . . . . . . . . Retrieved Matter . | . . . . . . . . . . . . . . . . . . . . . . . . . . . . . . Parts Self-Destructed 78 | . . . . . . . . . 9 . 1 3 . . . . . . 9 25 18 13 . . . . . . . Prevented 38 | . . . . . . . . . 2 5 . 12 . . . . . . 19 . . . . . . . . . . Kills | -11 -10 -10 -9 -9 -9 -8 -8 -7 -7 -7 -7 -6 -6 -6 -6 -6 -6 -5 -5 -5 -5 -4 -4 -4 -4 -3 -3 -2 -1 ------- Run | Scr Mat Min Mat Min Exi Min Mat Fac Low Low Zio Pro Fac Ext Cet Arc Hub Fac Upp Upp Zhi Pro Fac Arm Lab Res Qua Res Acc Combat Hostiles Destroyed 124 | . 3 8 8 2 . 5 7 6 10 4 . 9 8 2 1 2 10 . 14 11 . 7 1 . . 1 5 . . Melee 13 | . . . 1 . . 1 . . . . . . 8 1 . . . . . . . . 1 . . . 1 . . Guns 23 | . 2 4 . . . . . . . . . . . . . . 2 . . 8 . 7 . . . . . . . Cannons 22 | . . . 5 . . . . 5 . 1 . . . 1 . 2 . . 2 3 . . . . . 1 2 . . AOE 48 | . 1 4 2 2 . 4 5 1 9 3 . 8 . . . . 4 . 5 . . . . . . . . . . Classes Destroyed 22 | . 2 3 1 2 . 2 2 2 . 1 . . 1 1 . . 3 . 1 . . . . . . . 1 . . Worker 8 | . . . . . . . . . . . . . . 2 . . 1 . . . . . 3 . . 2 . . . Builder 5 | . . . . 1 . . . . . . . . . . . . 3 . . . . . . . . . 1 . . Tunneler 4 | . . . . . . 1 . . . . . . . 2 . . 1 . . . . . . . . . . . . Hauler 1 | . 1 . . . . . . . . . . . . . . . . . . . . . . . . . . . . Recycler 2 | . . . . 1 . . . . . . . . . . . . . . . . . . 1 . . . . . . Operator 9 | . . . . . . . 1 . . . . . . 1 . 7 . . . . . . . . . . . . . Drone 1 | . . . . . . . . . . . . . . . . . 1 . . . . . . . . . . . . Watcher 3 | . . . . . . . . 1 . . . . . . . . . . . . . . . . . 1 . . 1 Swarmer 29 | . . 2 3 . . 3 . . 9 . . 3 . . . . . . 4 . . 4 . . . . 1 . . Grunt 49 | . 3 . 2 2 . . 2 4 . 3 . 4 3 . . . 6 . 4 10 . 3 . . . . 3 . . Brawler 3 | . . . . . . . 1 1 . . . . . . . . . . 1 . . . . . . . . . . Duelist 3 | . . . . . . . . 1 . . . . . . . . 1 . 1 . . . . . . . . . . Researcher 2 | . . . . . . . . . . . . . . . . . . . . . . . . . . . 2 . . Sentry 11 | . . . 3 . . . 2 . 1 . . . 1 1 . 2 . . 1 . . . . . . . . . . Demolisher 2 | . . 2 . . . . . . . . . . . . . . . . . . . . . . . . . . . Specialist 2 | . . . . . . . . . . . . . . . . . 2 . . . . . . . . . . . . Hunter 11 | . . . . . . 2 2 . . . . 2 3 . . . . . . 1 . . . . . . 1 . . Programmer 5 | . . . . . . . . . . . . . 1 1 . . . . 2 . . . 1 . . . . . . Heavy 1 | . . . . . . . . . . . . . . . . . 1 . . . . . . . . . . . . Behemoth 1 | . . . . . . . . . . . . . . . . . . . 1 . . . . . . . . . . Cetus Guard 1 | . . . . . . . . . . . . . . . 1 . . . . . . . . . . . . . . Tracker 1 | . . . . . . . . . . . . . . . . . . . . . . . . . . 1 . . . Decomposer 3 | . . . . . . . . . . . . . . . . . . . 3 . . . . . . . . . . Thief 1 | . . . . . . . . . . 1 . . . . . . . . . . . . . . . . . . . Assembled 4 | . . 4 . . . . . . . . . . . . . . . . . . . . . . . . . . . Thug 1 | . . . . . . . . . . . . . . . 1 . . . . . . . . . . . . . . Guerrilla 1 | . . . . . . . . . . . . . . . 1 . . . . . . . . . . . . . . Best Kill Streak 11 | . 4 3 3 2 . 4 3 4 4 3 . 3 3 5 1 3 11 . 4 3 . 4 3 . . 3 2 . 1 Combat Bots Only 6 | . 3 3 3 2 . 3 3 4 4 3 . 3 3 1 1 2 6 . 4 3 . 4 1 . . 1 2 . . Max Kills in Single Turn 3 | . 2 1 2 1 . 3 2 1 2 2 . 1 1 1 2 1 2 . 3 2 . 2 1 . . 1 1 . 1 Gunslinging 1 | . . . . . . . . . . . . . . . . . . . . 1 . 1 . . . . . . . Exploded 3 | . 1 1 2 1 . 3 2 1 2 2 . 1 . . . . 2 . 3 . . . . . . . . . . Melee 1 | . . . 1 . . 1 . . . . . . 1 1 . . . . . . . . 1 . . . 1 . . Uniques/NPCs Destroyed . | . . . . . . . . . . . . . . . . . . . . . . . . . . . . . . Combat | -11 -10 -10 -9 -9 -9 -8 -8 -7 -7 -7 -7 -6 -6 -6 -6 -6 -6 -5 -5 -5 -5 -4 -4 -4 -4 -3 -3 -2 -1 -------- Run | Scr Mat Min Mat Min Exi Min Mat Fac Low Low Zio Pro Fac Ext Cet Arc Hub Fac Upp Upp Zhi Pro Fac Arm Lab Res Qua Res Acc Damage Taken 21150 | . 73 543 571 191 . 352 252 632 952 184 . 517 933 1128 211 457 915 . 1373 1430 . 2361 371 . . 541 3246 . 3917 Core 4349 | . 73 89 79 48 . 86 20 128 70 15 . . 65 53 67 . 13 . 35 129 . 702 67 . . 35 1045 . 1530 Absorbed by Shields 517 | . . . . . . . . . . . . . . 8 . . . . . 352 . . . . . . 157 . . Reduced by Siege Mode 15 | . . . . . . . . . . . . . . . . . . . . . . . . . . . 15 . . Redirected to Core 785 | . . . . . . . . . . . . . . . . . . . . . . . . . . . 719 . 66 Redirected to Shielding 338 | . . . 28 . . 14 9 . . 4 . . . 3 . 63 . . . 52 . 165 . . . . . . . Core Remaining (%) 64 | 100 . 35 . . . 46 96 . . . . 69 . . . . 76 . . . . 13 . . 88 . 24 100 . Volleys Fired 445 | . 7 21 16 2 . 3 5 38 15 12 . 23 1 15 6 34 27 . 55 48 31 25 . 1 . 6 43 . 11 Largest 2 | . 2 2 2 1 . 1 1 1 1 1 . 1 1 1 1 1 1 . 2 2 2 2 . 1 . 1 1 . 1 Hottest 310 | . 40 60 60 30 . 30 33 60 60 60 . 48 48 85 85 85 43 . 310 160 40 150 . 35 . 100 105 . 105 Shots Fired 557 | . 14 36 17 2 . 3 5 38 15 12 . 23 1 15 6 34 27 . 63 73 62 50 . 1 . 6 43 . 11 Gun 180 | . 14 26 . . . . . 1 2 . . . . . . . 9 . 14 63 . 50 . 1 . . . . . Cannon 197 | . . . 15 . . . . 35 3 8 . 3 1 10 2 34 . . 16 10 . . . . . 6 43 . 11 Launcher 113 | . . 10 2 2 . 3 5 2 10 4 . 20 . 5 4 . 13 . 33 . . . . . . . . . . Special 67 | . . . . . . . . . . . . . . . . . 5 . . . 62 . . . . . . . . Kinetic 107 | . 14 26 . . . . . 1 . . . 3 1 . . . 9 . 7 45 . . . 1 . . . . . Thermal 282 | . . . . . . . . 35 3 8 . . . 10 2 34 . . 23 28 62 50 . . . 6 10 . 11 Explosive 34 | . . 10 2 2 . 3 5 . 7 . . . . . . . 4 . 1 . . . . . . . . . . Electromagnetic 129 | . . . 15 . . . . 2 5 4 . 20 . 5 4 . 9 . 32 . . . . . . . 33 . . Robot Hit Streak 25 | . 2 7 5 5 . 1 2 13 3 2 . 5 . 5 10 10 17 . 19 16 25 14 . . . 6 11 . 3 Robot Miss Streak 5 | . 1 2 2 . . 1 . 2 3 3 . 2 . 1 1 2 4 . 1 3 1 4 . . . . 2 . 5 Penetration Max . | . . . . . . . . . . . . . . . . . . . . . . . . . . . . . . Secondary Targets 5 | . . . . . . . . . . . . . . . . . . . . 2 . 3 . . . . . . . Max Gunslinging Chain 1 | . . . . . . . . . . . . . . . . . . . . 1 . 1 . . . . . . . Shots Hit Robots 494 | . 7 23 13 4 . 3 9 32 19 6 . 9 14 44 5 36 22 . 45 62 53 37 14 . . 8 26 . 3 Core Hits 314 | . 8 13 10 4 . 5 12 14 16 6 . 18 8 13 15 15 27 . 24 43 24 14 6 . . 4 14 . 1 Critical Kills 4 | . . . . . . . . . . . . . . . . . . . 1 2 . . . . . . . . 1 Critical Parts Destroyed 7 | . . . 1 . . . 2 . 1 . . . . . . . . . . 3 . . . . . . . . . Critical Strikes 18 | . . . 1 . . . 2 . 1 . . . 1 . . . . . 1 5 4 1 1 . . . . . 1 Burn 1 | . . . . . . . . . . . . . . . . . . . . . . 1 . . . . . . . Meltdown 2 | . . . . . . . . . . . . . . . . . . . 1 . . . . . . . . . 1 Destroy 5 | . . . . . . . . . . . . . . . . . . . . 5 . . . . . . . . . Smash 4 | . . . 1 . . . 2 . 1 . . . . . . . . . . . . . . . . . . . . Sever 6 | . . . . . . . . . . . . . 1 . . . . . . . 4 . 1 . . . . . . Melee Attacks 200 | . . . 4 3 . 4 13 5 18 . . . 52 35 . 8 . 1 3 5 . 1 17 2 3 10 16 . . Impact 47 | . . . 4 3 . 4 13 5 18 . . . . . . . . . . . . . . . . . . . . Slashing 127 | . . . . . . . . . . . . . 52 9 . 8 . 1 3 5 . 1 17 2 3 10 16 . . Piercing . | . . . . . . . . . . . . . . . . . . . . . . . . . . . . . . Sneak Attacks 48 | . . . . 3 . 1 . . . . . . . 26 . 7 . . 3 . . . 5 . . 1 2 . . Combat Hostiles . | . . . . . . . . . . . . . . . . . . . . . . . . . . . . . . Follow-up Attacks . | . . . . . . . . . . . . . . . . . . . . . . . . . . . . . . Damage Inflicted 18606 | . 275 446 401 375 . 322 647 825 1025 406 . 832 652 795 530 1617 1915 . 1982 1241 683 869 901 . . 409 1346 . 112 Guns 2705 | . 106 170 . . . . . . . . . . . . . . 154 . 331 1084 . 860 . . . . . . . Cannons 3944 | . . . 256 . . . . 685 . 137 . . . 314 29 848 . . 304 157 . . . . . 274 834 . 106 Explosions 6755 | . 169 276 101 88 . 209 399 114 614 269 . 832 . 264 501 . 1761 . 1158 . . . . . . . . . . Melee 4272 | . . . 27 287 . 113 248 26 411 . . . 652 217 . 769 . . 189 . . . 901 . . 135 297 . . Ramming 247 | . . . 17 . . . . . . . . . . . . . . . . . . 9 . . . . 215 . 6 Kinetic 1298 | . 106 170 . . . . . . . . . . . . . . 154 . 169 699 . . . . . . . . . Thermal 5846 | . 169 . . . . . . 685 . 137 . 54 . 358 197 848 290 . 466 542 683 860 . . . 274 177 . 106 Explosive 1890 | . . 276 101 88 . 209 399 . 567 . . . . . . . 196 . 54 . . . . . . . . . . Electromagnetic 5053 | . . . 256 . . . . 114 47 269 . 778 . 220 333 . 1275 . 1104 . . . . . . . 657 . . Impact 1112 | . . . 27 287 . 113 248 26 411 . . . . . . . . . . . . . . . . . . . . Slashing 3160 | . . . . . . . . . . . . . 652 217 . 769 . . 189 . . . 901 . . 135 297 . . Piercing . | . . . . . . . . . . . . . . . . . . . . . . . . . . . . . . Highest Corruption 8 | . . . 1 1 1 1 . . . . . 1 3 . . . 2 . 4 2 2 2 2 2 . 4 4 . 8 Average Corruption 1 | . . . 1 1 1 1 . . . . . 1 2 . . . 1 . 2 2 2 2 1 1 . 3 4 . 4 Corruption Purged 9 | . . . . . . . . . . . . . 3 . . . . . 4 . . . . 2 . . . . . Corruption Blocked 45 | . . . . . . . . . . . . . . . . . . . . . . . . . . . 45 . . Effects 82 | . . . . 10 4 1 . . . . . 9 2 . . . . . 9 15 6 10 . 1 . 1 11 . 3 Message Errors 22 | . . . . 4 1 . . . . . . 3 1 . . . . . 2 4 2 2 . . . . 3 . . Matter Fused 23 | . . . . 4 2 . . . . . . 1 . . . . . . 4 6 . 2 . . . . 3 . 1 Heat Flow Errors 8 | . . . . . . . . . . . . 1 . . . . . . . 1 1 2 . . . 1 2 . . Energy Discharges 13 | . . . . . . . . . . . . 2 . . . . . . 2 1 1 3 . . . . 3 . 1 Parts Rejected 1 | . . . . . . . . . . . . . . . . . . . . 1 . . . . . . . . . Data Loss (minor) 10 | . . . . 2 1 . . . . . . 1 1 . . . . . . . 2 1 . 1 . . . . 1 Data Loss (major) 3 | . . . . . . 1 . . . . . 1 . . . . . . . 1 . . . . . . . . . Misfires 1 | . . . . . . . . . . . . . . . . . . . 1 . . . . . . . . . . Alerts 1 | . . . . . . . . . . . . . . . . . . . . 1 . . . . . . . . . Overload Shots 1 | . . . . . . . . . . . . . . . . . . . 1 . . . . . . . . . . Overflow Damage 1037 | . 61 22 27 158 . 63 60 4 110 19 . 17 14 18 . 220 42 . 25 . . . 55 . . 35 87 . . Projectiles 91 | . . . . . . . . . . 19 . . . . . 51 . . 21 . . . . . . . . . . Explosions 241 | . 61 22 . . . . . . 77 . . 17 . 18 . . 42 . 4 . . . . . . . . . . Melee 705 | . . . 27 158 . 63 60 4 33 . . . 14 . . 169 . . . . . . 55 . . 35 87 . . Knockbacks 5 | . . . 1 1 . 1 . . . . . . . . . . . . . . . . . . . . 2 . . Impact 5 | . . . 1 1 . 1 . . . . . . . . . . . . . . . . . . . . 2 . . Kinetic . | . . . . . . . . . . . . . . . . . . . . . . . . . . . . . . Secondary . | . . . . . . . . . . . . . . . . . . . . . . . . . . . . . . Self-Inflicted Damage 571 | . 61 28 . 42 . 40 . . 35 9 . 25 . . . . 225 . 3 . . 4 . . . . 96 . 3 Shots 22 | . 1 3 . 2 . 1 . . 2 2 . 4 . . . . 6 . 1 . . . . . . . . . . Rammed 27 | . . . 6 . . . . . . . . . . . . . . . . . . 2 . . . . 16 . 3 Targets Rammed 27 | . . . 6 . . . . . . . . . . . . . . . . . . 2 . . . . 16 . 3 Kicked . | . . . . . . . . . . . . . . . . . . . . . . . . . . . . . . Crushed . | . . . . . . . . . . . . . . . . . . . . . . . . . . . . . . Highest Temperature 255 | . . 20 10 . . . 15 11 4 5 . 171 10 252 255 247 72 . 198 187 67 126 2 . . 177 113 . 110 Average Temperature 66 | . . 20 5 . . . 5 3 4 5 . 56 7 104 112 102 35 . 55 43 48 44 2 . . 88 22 . 37 Received Heat Transfer 3111 | . 6 40 216 78 . 12 81 297 174 63 . 66 69 325 45 72 144 . 190 490 . 288 36 . . 9 248 . 162 Siege Activations 1 | . . . . . . . . . . . . . . . . . . . . . . . . . . . 1 . . Total Turns 6 | . . . . . . . . . . . . . . . . . . . . . . . . . . . 6 . . Longest Duration 6 | . . . . . . . . . . . . . . . . . . . . . . . . . . . 6 . . Robots Corrupted 11 | . . . . . . . . . . . . 1 . . 1 . 2 . 5 . . . . . . . 2 . . Combat Hostiles 11 | . . . . . . . . . . . . 1 . . 1 . 2 . 5 . . . . . . . 2 . . Parts Fried 35 | . . . . 3 . 1 3 2 . 2 . 5 . 2 . . 10 . 2 . . . . . . . 5 . . Impact Corruptions 15 | . . . 1 4 . 3 3 1 2 . . . . . . . . . . . . . . . . . 1 . . Robots Melted 3 | . . . . . . . . . . . . . . . . . . . 2 . . . . . . . . . 1 Combat Hostiles 2 | . . . . . . . . . . . . . . . . . . . 2 . . . . . . . . . . Parts Melted 19 | . . . . . . . . 2 . . . . . 1 . 3 . . 3 1 . 6 . . . . . . 3 Heat Transferred 8884 | . 100 . . . . . . 1110 . 222 . 50 . 383 187 1036 250 . 518 855 1950 1742 . . . 222 148 . 111 Parts Sabotaged . | . . . . . . . . . . . . . . . . . . . . . . . . . . . . . . Parts Stolen . | . . . . . . . . . . . . . . . . . . . . . . . . . . . . . . Parts Stripped . | . . . . . . . . . . . . . . . . . . . . . . . . . . . . . . Power Chain Reactions 7 | . . . . . . . . . . . . 3 . 1 1 . 2 . . . . . . . . . . . . Missiles Intercepted . | . . . . . . . . . . . . . . . . . . . . . . . . . . . . . . Alert | -11 -10 -10 -9 -9 -9 -8 -8 -7 -7 -7 -7 -6 -6 -6 -6 -6 -6 -5 -5 -5 -5 -4 -4 -4 -4 -3 -3 -2 -1 ------- Run | Scr Mat Min Mat Min Exi Min Mat Fac Low Low Zio Pro Fac Ext Cet Arc Hub Fac Upp Upp Zhi Pro Fac Arm Lab Res Qua Res Acc Peak Influence 825 | . 236 325 286 84 . 153 454 284 . . . . 190 258 120 137 825 408 . . . . 268 101 . 189 457 237 291 Initial 399 | . . 91 48 . . . 55 206 . . . . . . 42 48 . 399 . . . . 210 78 . . 18 237 141 Average 113 | . 114 177 129 21 . 49 284 177 . . . . 38 67 93 111 179 399 . . . . 181 90 . 59 182 237 204 Maximum Alert Level 3 | . 1 1 1 . . . 2 1 . . . . . 1 . . 3 2 . . . . 1 . . . 2 1 1 Low Security (%) 78 | 100 55 66 81 100 . 100 43 45 . . . . 100 92 100 100 71 . . . . . 51 100 . 100 63 . 42 Level 1 19 | . 44 33 18 . . . 19 54 . . . . . 7 . . 23 68 . . . . 48 . . . 32 100 57 Level 2 2 | . . . . . . . 37 . . . . . . . . . . 31 . . . . . . . . 4 . . Level 3 . | . . . . . . . . . . . . . . . . . 5 . . . . . . . . . . . . Level 4 . | . . . . . . . . . . . . . . . . . . . . . . . . . . . . . . Level 5 . | . . . . . . . . . . . . . . . . . . . . . . . . . . . . . . High Security . | . . . . . . . . . . . . . . . . . . . . . . . . . . . . . . Max Security . | . . . . . . . . . . . . . . . . . . . . . . . . . . . . . . Squads Dispatched 27 | . 2 . . . . . . 1 . . . . 2 . . . 2 1 . . . 1 1 . . 5 9 . 3 Investigation 5 | . 1 . . . . . . . . . . . . . . . . . . . . . . . . 1 1 . 2 Extermination 5 | . . . . . . . . 1 . . . . 1 . . . . . . . . . 1 . . . 2 . . Reinforcement 12 | . 1 . . . . . . . . . . . 1 . . . 2 1 . . . . . . . 2 5 . . Assault 1 | . . . . . . . . . . . . . . . . . . . . . . 1 . . . . . . . Garrison 1 | . . . . . . . . . . . . . . . . . . . . . . . . . . . 1 . . Intercept 3 | . . . . . . . . . . . . . . . . . . . . . . . . . . 2 . . 1 Searches Triggered . | . . . . . . . . . . . . . . . . . . . . . . . . . . . . . . Construction Impeded . | . . . . . . . . . . . . . . . . . . . . . . . . . . . . . . Haulers Reinforced . | . . . . . . . . . . . . . . . . . . . . . . . . . . . . . . Active Scanning Responses . | . . . . . . . . . . . . . . . . . . . . . . . . . . . . . . Cargo Convoy Interrupts . | . . . . . . . . . . . . . . . . . . . . . . . . . . . . . . Stealth | -11 -10 -10 -9 -9 -9 -8 -8 -7 -7 -7 -7 -6 -6 -6 -6 -6 -6 -5 -5 -5 -5 -4 -4 -4 -4 -3 -3 -2 -1 --------- Run | Scr Mat Min Mat Min Exi Min Mat Fac Low Low Zio Pro Fac Ext Cet Arc Hub Fac Upp Upp Zhi Pro Fac Arm Lab Res Qua Res Acc Distress Signals 10 | . . 1 . . . . 1 . . . . . . 2 1 . . 1 . . . . . . . . 2 . 2 Communications Jammed . | . . . . . . . . . . . . . . . . . . . . . . . . . . . . . . Distress Signals . | . . . . . . . . . . . . . . . . . . . . . . . . . . . . . . Times Spotted 383 | . 10 10 10 6 . 6 13 16 11 4 . 11 17 25 5 16 15 . 16 11 . 45 13 . . 10 52 . 61 Peak Tracking Total 22 | . 5 5 3 3 . 3 6 6 4 3 . 4 4 5 5 2 7 . 4 5 . 9 9 . . 7 20 . 22 Tactical Retreats 35 | . . 2 . 2 . . 1 6 1 . . 2 1 . . . 1 . 1 . . 10 . . . . 2 . 6 Traps | -11 -10 -10 -9 -9 -9 -8 -8 -7 -7 -7 -7 -6 -6 -6 -6 -6 -6 -5 -5 -5 -5 -4 -4 -4 -4 -3 -3 -2 -1 ------- Run | Scr Mat Min Mat Min Exi Min Mat Fac Low Low Zio Pro Fac Ext Cet Arc Hub Fac Upp Upp Zhi Pro Fac Arm Lab Res Qua Res Acc Traps Triggered 9 | . 1 . 1 . . . . 1 . . . . 1 3 . . . . . . . . . . . . . . 2 Indirectly . | . . . . . . . . . . . . . . . . . . . . . . . . . . . . . . Trap Hack Attempts . | . . . . . . . . . . . . . . . . . . . . . . . . . . . . . . Triggered . | . . . . . . . . . . . . . . . . . . . . . . . . . . . . . . Disarmed . | . . . . . . . . . . . . . . . . . . . . . . . . . . . . . . Reprogrammed . | . . . . . . . . . . . . . . . . . . . . . . . . . . . . . . Reused . | . . . . . . . . . . . . . . . . . . . . . . . . . . . . . . Traps Extracted . | . . . . . . . . . . . . . . . . . . . . . . . . . . . . . . Installed . | . . . . . . . . . . . . . . . . . . . . . . . . . . . . . . Triggered 2 | . . . . . . . . 1 1 . . . . . . . . . . . . . . . . . . . . Most Traps Carried 4 | . . . . 4 4 4 4 . . . . . . . . . . . . . . . . . . . . . . Machines | -11 -10 -10 -9 -9 -9 -8 -8 -7 -7 -7 -7 -6 -6 -6 -6 -6 -6 -5 -5 -5 -5 -4 -4 -4 -4 -3 -3 -2 -1 ---------- Run | Scr Mat Min Mat Min Exi Min Mat Fac Low Low Zio Pro Fac Ext Cet Arc Hub Fac Upp Upp Zhi Pro Fac Arm Lab Res Qua Res Acc Machines Disabled 40 | . 2 . . . . . 1 1 1 . . . . 4 . 2 24 . . . . . . 1 1 . 3 . . Max in Single Turn 21 | . 2 . . . . . 1 1 1 . . . . 1 . 1 21 . . . . . . 1 1 . 1 . . Garrison Access 1 | . . . . . . . . . . . . . 1 . . . . . . . . . . . . . . . . Network Hub 1 | . . . . . . . . . . . . . . . . . 1 . . . . . . . . . . . . Machines Sabotaged 1 | . . . . . . . . . . . . . . . . . . . . . . . . . . 1 . . . Garrisons Compromised . | . . . . . . . . . . . . . . . . . . . . . . . . . . . . . . Overloaded Fab Kills . | . . . . . . . . . . . . . . . . . . . . . . . . . . . . . . Hacking | -11 -10 -10 -9 -9 -9 -8 -8 -7 -7 -7 -7 -6 -6 -6 -6 -6 -6 -5 -5 -5 -5 -4 -4 -4 -4 -3 -3 -2 -1 --------- Run | Scr Mat Min Mat Min Exi Min Mat Fac Low Low Zio Pro Fac Ext Cet Arc Hub Fac Upp Upp Zhi Pro Fac Arm Lab Res Qua Res Acc Machines Accessed 82 | . 2 . 6 . . . 3 4 . 1 . . 7 18 3 1 1 . 1 1 9 . 6 2 2 5 8 . 2 Terminals 64 | . 2 . 6 . . . 3 4 . 1 . . 6 18 3 . 1 . . . . . 6 2 . 4 7 . 1 Fabricators . | . . . . . . . . . . . . . . . . . . . . . . . . . . . . . . Repair Stations . | . . . . . . . . . . . . . . . . . . . . . . . . . . . . . . Recycling Units . | . . . . . . . . . . . . . . . . . . . . . . . . . . . . . . Scanalyzers 1 | . . . . . . . . . . . . . . . . . . . . . . . . . . 1 . . . Garrison Access 3 | . . . . . . . . . . . . . 1 . . . . . . . . . . . . . 1 . 1 Total Hacks 369 | . 5 . 20 . . . 13 11 . 1 . . 40 70 7 12 4 . 1 1 48 . 30 10 19 33 38 . 6 Successful 263 | . 2 . 9 . . . 7 4 . 1 . . 26 50 5 12 2 . 1 1 48 . 19 3 19 23 28 . 3 Failed 106 | . 3 . 11 . . . 6 7 . . . . 14 20 2 . 2 . . . . . 11 7 . 10 10 . 3 Catastrophic 10 | . . . . . . . 1 2 . . . . 3 1 . . . . . . . . 1 1 . . . . 1 Database Lockouts . | . . . . . . . . . . . . . . . . . . . . . . . . . . . . . . Manual 196 | . 5 . 15 . . . 10 9 1 1 . . 23 55 1 . 2 . . . . . 14 5 . 27 25 . 3 Terminals 282 | . 5 . 20 . . . 13 11 . 1 . . 39 70 7 . 4 . . . . . 30 10 . 31 36 . 5 Fabricators . | . . . . . . . . . . . . . . . . . . . . . . . . . . . . . . Repair Stations . | . . . . . . . . . . . . . . . . . . . . . . . . . . . . . . Recycling Units . | . . . . . . . . . . . . . . . . . . . . . . . . . . . . . . Scanalyzers 2 | . . . . . . . . . . . . . . . . . . . . . . . . . . 2 . . . Garrison Access 4 | . . . . . . . . . . . . . 1 . . . . . . . . . . . . . 2 . 1 Terminal Hacks 198 | . 1 . 5 . . . 4 3 . 1 . . 16 33 5 12 2 . 1 1 48 . 12 3 19 11 19 . 2 Record 78 | . . . . . . . . . . 1 . . 3 . 4 12 . . . . 36 . . . 19 1 2 . . Part Schematic 11 | . . . . . . . . . . . . . . 6 . . . . . . 4 . . . . 1 . . . Robot Analysis 10 | . . . . . . . . . . . . . . 6 . . . . . . 4 . . . . . . . . Prototype ID Bank 11 | . . . . . . . . 1 . . . . 2 2 . . . . . . 4 . 1 . . . 1 . . Open Door 13 | . . . . . . . . . . . . . . 8 1 . . . 1 1 . . . 1 . 1 . . . Level Access Points 3 | . . . 1 . . . 1 . . . . . . . . . . . . . . . . . . . 1 . . Branch Access Points 7 | . . . . . . . 1 1 . . . . 1 . . . . . . . . . 1 . . 1 1 . 1 Emergency Access Points 4 | . . . . . . . . . . . . . . . . . . . . . . . . . . 1 3 . . Machine Index 2 | . . . . . . . . . . . . . . . . . 1 . . . . . 1 . . . . . . Terminal Index 3 | . . . . . . . . . . . . . . 1 . . . . . . . . . 1 . . 1 . . Scanalyzer Index 1 | . . . . . . . . . . . . . . . . . . . . . . . . . . . 1 . . Alert Level 2 | . . . . . . . . . . . . . 1 . . . . . . . . . 1 . . . . . . Unreport Threat 8 | . . . 1 . . . . 1 . . . . 1 3 . . . . . . . . 1 . . 1 . . . Locate Traps 4 | . . . . . . . . . . . . . . 1 . . . . . . . . 1 . . 1 1 . . Patrol Status 2 | . . . . . . . . . . . . . 1 . . . . . . . . . . . . . 1 . . Recall Investigation 1 | . . . . . . . . . . . . . 1 . . . . . . . . . . . . . . . . Recall Extermination 3 | . . . . . . . . . . . . . 1 . . . . . . . . . . . . 1 1 . . Recall Reinforcements 2 | . . . . . . . . . . . . . 1 . . . . . . . . . . . . . 1 . . Registered Components 5 | . . . . . . . . . . . . . . . . . . . . . . . 2 1 . 1 1 . . Registered Prototypes 3 | . . . . . . . . . . . . . . 1 . . . . . . . . 1 . . . 1 . . Zone Layout 25 | . 1 . 3 . . . 2 . . . . . 4 5 . . 1 . . . . . 3 . . 2 3 . 1 Fabricator Hacks . | . . . . . . . . . . . . . . . . . . . . . . . . . . . . . . Repair Station Hacks . | . . . . . . . . . . . . . . . . . . . . . . . . . . . . . . Recycling Unit Hacks . | . . . . . . . . . . . . . . . . . . . . . . . . . . . . . . Scanalyzer 2 | . . . . . . . . . . . . . . . . . . . . . . . . . . 2 . . . Insert Component 2 | . . . . . . . . . . . . . . . . . . . . . . . . . . 2 . . . Garrison Access Hacks 1 | . . . . . . . . . . . . . 1 . . . . . . . . . . . . . . . . Seal Access 1 | . . . . . . . . . . . . . 1 . . . . . . . . . . . . . . . . Unauthorized Hacks 61 | . 1 . 4 . . . 3 1 . . . . 9 17 . . . . . . . . 7 . . 9 9 . 1 Terminals 59 | . 1 . 4 . . . 3 1 . . . . 9 17 . . . . . . . . 7 . . 9 8 . . Track 21 | . 1 . 1 . . . . . . . . . 5 5 . . . . . . . . 3 . . 3 3 . . Assimilate 3 | . . . . . . . . . . . . . 1 . . . . . . . . . 1 . . 1 . . . Botnet 22 | . . . 3 . . . 3 1 . . . . 2 5 . . . . . . . . 3 . . 2 3 . . Disrupt 12 | . . . . . . . . . . . . . 1 7 . . . . . . . . . . . 2 2 . . Sabotage 1 | . . . . . . . . . . . . . . . . . . . . . . . . . . 1 . . . Fabricators . | . . . . . . . . . . . . . . . . . . . . . . . . . . . . . . Repair Stations . | . . . . . . . . . . . . . . . . . . . . . . . . . . . . . . Recycling Units . | . . . . . . . . . . . . . . . . . . . . . . . . . . . . . . Scanalyzers . | . . . . . . . . . . . . . . . . . . . . . . . . . . . . . . Garrison Access 2 | . . . . . . . . . . . . . . . . . . . . . . . . . . . 1 . 1 Reprogram 2 | . . . . . . . . . . . . . . . . . . . . . . . . . . . 1 . 1 Data Cores Recovered 3 | . . . . . . . 1 . . . . . . 2 . . . . . . . . . . . . . . . Used 3 | . . . . . . . 1 . . . . . . 2 . . . . . . . . . . . . . . . Hacking Detections 55 | . 2 . 6 . . . 3 4 . . . . 6 12 3 . 1 . . . . . 6 1 . 4 5 . 2 Full Trace Events 1 | . . . . . . . . . . . . . . . . . . . . . . . . . . . . . 1 Feedback Events . | . . . . . . . . . . . . . . . . . . . . . . . . . . . . . . Feedback Blocked . | . . . . . . . . . . . . . . . . . . . . . . . . . . . . . . Robot Schematics Acquired . | . . . . . . . . . . . . . . . . . . . . . . . . . . . . . . Robots Built . | . . . . . . . . . . . . . . . . . . . . . . . . . . . . . . Authchips . | . . . . . . . . . . . . . . . . . . . . . . . . . . . . . . Time . | . . . . . . . . . . . . . . . . . . . . . . . . . . . . . . Total Robot Build Rating . | . . . . . . . . . . . . . . . . . . . . . . . . . . . . . . Part Schematics Acquired 14 | . . . . . . . . . . . . . . 6 . . . . . . 4 . . . . 1 3 . . Parts Built . | . . . . . . . . . . . . . . . . . . . . . . . . . . . . . . Authchips . | . . . . . . . . . . . . . . . . . . . . . . . . . . . . . . Time . | . . . . . . . . . . . . . . . . . . . . . . . . . . . . . . Total Part Build Rating . | . . . . . . . . . . . . . . . . . . . . . . . . . . . . . . Parts Repaired . | . . . . . . . . . . . . . . . . . . . . . . . . . . . . . . Time . | . . . . . . . . . . . . . . . . . . . . . . . . . . . . . . Parts Recycled . | . . . . . . . . . . . . . . . . . . . . . . . . . . . . . . Recycled Matter . | . . . . . . . . . . . . . . . . . . . . . . . . . . . . . . Retrieved Matter . | . . . . . . . . . . . . . . . . . . . . . . . . . . . . . . Retrieved Components . | . . . . . . . . . . . . . . . . . . . . . . . . . . . . . . Parts Scanalyzed . | . . . . . . . . . . . . . . . . . . . . . . . . . . . . . . Part Schematics Acquired . | . . . . . . . . . . . . . . . . . . . . . . . . . . . . . . Parts Damaged . | . . . . . . . . . . . . . . . . . . . . . . . . . . . . . . Bothacking | -11 -10 -10 -9 -9 -9 -8 -8 -7 -7 -7 -7 -6 -6 -6 -6 -6 -6 -5 -5 -5 -5 -4 -4 -4 -4 -3 -3 -2 -1 ------------ Run | Scr Mat Min Mat Min Exi Min Mat Fac Low Low Zio Pro Fac Ext Cet Arc Hub Fac Upp Upp Zhi Pro Fac Arm Lab Res Qua Res Acc Used RIF Installer . | . . . . . . . . . . . . . . . . . . . . . . . . . . . . . . Robots Hacked . | . . . . . . . . . . . . . . . . . . . . . . . . . . . . . . Non-combat . | . . . . . . . . . . . . . . . . . . . . . . . . . . . . . . Combat . | . . . . . . . . . . . . . . . . . . . . . . . . . . . . . . Robot Hacks Applied . | . . . . . . . . . . . . . . . . . . . . . . . . . . . . . . Relay Couplers Released . | . . . . . . . . . . . . . . . . . . . . . . . . . . . . . . Fabnet Peak Effective % . | . . . . . . . . . . . . . . . . . . . . . . . . . . . . . . Robots Rewired 15 | . . . . . . . . . . . . . . 15 . . . . . . . . . . . . . . . Allies Hacked 4 | . . . . . . . . . . . . . . 1 . . . 1 . . . . 1 . . . 1 . . Hacks Repelled . | . . . . . . . . . . . . . . . . . . . . . . . . . . . . . . Allies | -11 -10 -10 -9 -9 -9 -8 -8 -7 -7 -7 -7 -6 -6 -6 -6 -6 -6 -5 -5 -5 -5 -4 -4 -4 -4 -3 -3 -2 -1 -------- Run | Scr Mat Min Mat Min Exi Min Mat Fac Low Low Zio Pro Fac Ext Cet Arc Hub Fac Upp Upp Zhi Pro Fac Arm Lab Res Qua Res Acc Total Allies 40 | . . . . . . . . . . . . . . 27 . . . 3 . . . . 1 . . . 4 . 5 Largest Group 15 | . . . . . . . . . . . . . . 15 13 5 1 3 . . . . 1 . . . 4 . 5 Highest-Rated Group 472 | . . . . . . . . . . . . . . 472 387 131 21 93 . . . . 26 . . . 293 . 290 Highest-Rated Ally 159 | . . . . . . . . . . . . . . 159 39 39 21 31 . . . . 26 . . . 82 . 58 Total Orders 64 | . . . . . . . . . . . . . 18 . . . 4 9 15 9 . 4 2 3 . . . . . STAY 2 | . . . . . . . . . . . . . 2 . . . . . . . . . . . . . . . . ROAM 2 | . . . . . . . . . . . . . 1 . . . . . 1 . . . . . . . . . . EXPLORE 41 | . . . . . . . . . . . . . 10 . . . 4 5 9 5 . 4 2 2 . . . . . RETURN 19 | . . . . . . . . . . . . . 5 . . . . 4 5 4 . . . 1 . . . . . Ally Attacks 205 | . . . . . . . . . . . . . . 113 26 17 . 18 . . . . . . . . 19 . 12 Total Damage 5167 | . . . . . . . . . . . . . . 2911 507 300 . 259 . . . . . . . . 674 . 516 Kills 29 | . . . . . . . . . . . . . . 17 4 2 . 1 . . . . . . . . 5 . . Allies Corrupted 1 | . . . . . . . . . . . . . . . . . . 1 . . . . . . . . . . . Allies Melted . | . . . . . . . . . . . . . . . . . . . . . . . . . . . . . . Intel | -11 -10 -10 -9 -9 -9 -8 -8 -7 -7 -7 -7 -6 -6 -6 -6 -6 -6 -5 -5 -5 -5 -4 -4 -4 -4 -3 -3 -2 -1 ------- Run | Scr Mat Min Mat Min Exi Min Mat Fac Low Low Zio Pro Fac Ext Cet Arc Hub Fac Upp Upp Zhi Pro Fac Arm Lab Res Qua Res Acc Robot Analysis Total 10 | . . . . . . . . . . . . . . 6 . . . . . . 4 . . . . . . . . Derelict Logs Recovered 11 | . . 1 . 3 . . . . . 2 . 2 . . . . . . 1 . . 2 . . . . . . . Drone Launches 42 | . . . . . . . . . . . . . 10 . . . 4 3 11 6 . 4 2 2 . . . . . Drone Recoveries 27 | . . . . . . . . . . . . . 7 . . . 2 3 8 6 . 1 . . . . . . . Exploration | -11 -10 -10 -9 -9 -9 -8 -8 -7 -7 -7 -7 -6 -6 -6 -6 -6 -6 -5 -5 -5 -5 -4 -4 -4 -4 -3 -3 -2 -1 ------------- Run | Scr Mat Min Mat Min Exi Min Mat Fac Low Low Zio Pro Fac Ext Cet Arc Hub Fac Upp Upp Zhi Pro Fac Arm Lab Res Qua Res Acc Turns Passed 17987 | 69 255 483 454 1595 336 161 361 859 774 788 1065 1573 1258 1025 199 409 178 147 1505 1072 556 733 356 68 191 309 790 37 381 Spaces Moved 11751 | 44 213 335 224 682 301 116 217 539 482 517 723 904 756 585 113 205 63 83 753 393 346 637 496 132 253 516 454 61 608 Core 335 | 17 1 . . . . . . . . . . . . . . . . . . . . 216 25 . . . . . 76 Treads 1859 | . . . 88 619 . . . . . . . . . . . . . 83 691 209 . . . . . . 169 . . Legs 65 | 27 38 . . . . . . . . . . . . . . . . . . . . . . . . . . . . Wheels 7247 | . 174 335 136 63 301 116 217 539 482 517 723 904 756 585 113 205 63 . 62 184 346 421 5 . . . . . . Hover 1069 | . . . . . . . . . . . . . . . . . . . . . . . 208 . . . 268 61 532 Flight 1176 | . . . . . . . . . . . . . . . . . . . . . . . 258 132 253 516 17 . . Fastest Speed 34 | 50 80 110 110 110 110 110 110 125 130 130 130 130 130 130 145 145 130 160 130 101 101 50 34 34 34 34 34 53 50 Average Speed 122 | 124 90 110 161 227 110 111 118 132 142 144 144 142 131 142 156 146 144 160 158 132 104 90 52 34 34 38 125 53 53 Slowest Speed 250 | 200 200 110 240 240 110 140 125 145 145 145 145 145 145 145 160 160 145 160 240 160 108 165 140 34 34 200 250 53 71 Overloaded Moves . | . . . . . . . . . . . . . . . . . . . . . . . . . . . . . . Propulsion Burnouts . | . . . . . . . . . . . . . . . . . . . . . . . . . . . . . . Robots Hopped 10 | . . . . . . . . . . . . . . . . . . . . . . . 2 . . 8 . . . Cave-ins Triggered . | . . . . . . . . . . . . . . . . . . . . . . . . . . . . . . Teleports 6 | . . . . . . . . . . . . . . . . . . . . . . . . 1 . . 4 . 1 Exploration Rate (%) 51 | 3 40 60 26 99 63 35 26 14 69 73 86 91 27 77 77 93 32 10 95 68 62 90 19 14 97 19 65 2 24 Regions Visited 29 Branch Regions 19 Pre-discovered Areas 10 | . . . . 3 . . . . . 1 2 . . . . . . . 1 . 3 . . . . . . . . Known Exits Taken 16 | . . . . . . 1 1 1 . . . . 1 . . . 1 1 1 1 1 1 1 1 1 1 1 1 . Unknown Exits Taken 13 | 1 1 1 1 1 1 . . . 1 1 1 1 . 1 1 1 . . . . . . . . . . . . . Scrap Searched 20 | . . 1 . 1 . . . . 1 3 3 5 . . . . . . 4 . . 2 . . . . . . . Spaces Dug 113 | . . . 3 9 . . 10 3 5 . . 8 32 . . . . 1 6 9 . 1 2 1 . 8 12 . 3 Terrain Destroyed 611 | . 28 66 20 14 . 25 39 3 49 . . 13 32 . 5 2 261 1 12 10 . 2 2 1 . 8 12 . 6 Melee 64 | . . . 3 . . . 2 3 . . . . 31 . . . . 1 . 5 . 1 2 1 . 8 7 . . Projectile 32 | . . . . . . . . . . . . 3 1 . 1 2 . . 8 5 . 1 . . . . 5 . 6 AOE 515 | . 28 66 17 14 . 25 37 . 49 . . 10 . . 4 . 261 . 4 . . . . . . . . . . Terrain Rammed . | . . . . . . . . . . . . . . . . . . . . . . . . . . . . . . Walls Destroyed . | . . . . . . . . . . . . . . . . . . . . . . . . . . . . . . Machines Disabled . | . . . . . . . . . . . . . . . . . . . . . . . . . . . . . . Actions | -11 -10 -10 -9 -9 -9 -8 -8 -7 -7 -7 -7 -6 -6 -6 -6 -6 -6 -5 -5 -5 -5 -4 -4 -4 -4 -3 -3 -2 -1 --------- Run | Scr Mat Min Mat Min Exi Min Mat Fac Low Low Zio Pro Fac Ext Cet Arc Hub Fac Upp Upp Zhi Pro Fac Arm Lab Res Qua Res Acc Total 14366 | 55 263 415 286 717 308 136 292 644 524 544 750 1159 925 734 130 271 115 96 993 859 420 748 562 151 352 597 609 64 647 Wait 1136 | . 24 34 6 5 . 9 17 10 . . 2 215 62 26 3 3 12 . 119 384 1 24 3 . 81 68 13 1 14 Move 11705 | 43 212 334 223 681 300 115 216 538 481 516 722 903 755 584 112 204 62 82 752 392 345 636 491 131 252 501 454 60 608 Hop 8 | . . . . . . . . . . . . . . . . . . . . . . . 2 . . 6 . . . Pick Up 224 | 6 9 15 9 9 3 . 11 14 3 2 8 5 21 10 2 7 2 3 22 5 14 5 6 2 6 . 24 . 1 Fast Attach 125 | 6 3 2 5 3 . 2 7 8 2 4 3 1 3 7 2 3 . . 2 1 6 9 19 4 2 4 7 2 8 Attach 117 | . . 5 3 1 . 1 2 5 3 2 2 1 10 1 . 1 6 6 10 9 8 15 4 3 2 . 15 . 2 Detach 18 | . . . . . . . . . . 1 . . . . . . . 1 1 2 . 6 4 . . . 3 . . Swap 88 | . 1 3 3 3 1 1 4 4 1 1 1 6 4 7 1 2 3 2 16 13 1 4 . 1 2 . 3 . . Drop 238 | . 7 1 11 10 4 1 17 22 1 6 12 5 17 13 4 9 3 1 13 . 14 21 16 7 4 2 16 1 . Fire 445 | . 7 21 16 2 . 3 5 38 15 12 . 23 1 15 6 34 27 . 55 48 31 25 . 1 . 6 43 . 11 Melee 200 | . . . 4 3 . 4 13 5 18 . . . 52 35 . 8 . 1 3 5 . 1 17 2 3 10 16 . . Ram 19 | . . . . . . . . . . . . . . . . . . . . . . 2 . . . . 14 . 3 Kick . | . . . . . . . . . . . . . . . . . . . . . . . . . . . . . . Crush 7 | . . . 6 . . . . . . . . . . . . . . . . . . . . . . . 1 . . Escape Stasis 24 | . . . . . . . . . . . . . . 24 . . . . . . . . . . . . . . . Rewire 12 | . . . . . . . . . . . . . . 12 . . . . . . . . . . . . . . . Trap . | . . . . . . . . . . . . . . . . . . . . . . . . . . . . . . Miscellaneous . | . . . . . . . . . . . . . . . . . . . . . . . . . . . . . . Route ------- -11/Scrapyard -10/Materials -10/Mines -9/Materials (discovered 4 exits: Mat x3 / [*Min]) -9/Mines (discovered 3 exits: *Mat x2 / [*Exi]) -9/Exiles (discovered 2 exits: [*Min x2]) -8/Mines -8/Materials (discovered 3 exits: *Fac x3) -7/Factory (discovered 2 exits: *Low x2) -7/Lower Caves -7/Lower Caves -7/Zion -6/Proximity Caves -6/Factory (discovered 5 exits: Fac / *Low x2 / *Ext x2) -6/Extension (discovered 2 exits: *Fac / *Cet) -6/Cetus -6/Archives (discovered 3 exits: *Fac / *Hub x2) -6/Hub_04(d) -5/Factory -5/Upper Caves -5/Upper Caves (discovered 2 exits: *Fac / *Zhi) -5/Zhirov -4/Proximity Caves -4/Factory (discovered 4 exits: *Res / *Upp x2 / *Arm) -4/Armory -4/Lab -3/Research (discovered 2 exits: *Qua x2) -3/Quarantine -2/Research -1/Access (discovered 1 exit: Com) History --------- Turn | Location | Event 33 | -11/Scrapyard | Discovered new exit (range 16) 70 | -11/Scrapyard | Entered Materials 269 | -10/Materials | Discovered new exit (range 16) 318 | -10/Materials | Build established: Mutant 325 | -10/Materials | Entered Mines 329 | -10/Mines | Assembled infested the area 368 | -10/Mines | Met a Derelict bent on vengeance 487 | -10/Mines | Core integrity fell below 50% 523 | -10/Mines | Lost 6 parts (1p2n1u2w) 718 | -10/Mines | Learned Materials terminal intel 738 | -10/Mines | Discovered new exit (range 11) 808 | -10/Mines | Entered Materials 808 | -9/Materials | Evolved 2 slots: Utility x2 809 | -9/Materials | Loaded intel: 11 terminal locations 809 | -9/Materials | Discovered new exit (range 15) 975 | -9/Materials | Identified exit to Materials 1262 | -9/Materials | Entered Mines 1299 | -9/Mines | Lost 3 parts (1u2w) 1513 | -9/Mines | Received a Rocket Launcher from a helpful Derelict 1600 | -9/Mines | Deemed a non-threat by the Exiles lab entrance 1602 | -9/Mines | Discovered new exit (range 5) 1655 | -9/Mines | Discovered exit to Materials (range 14) 1674 | -9/Mines | Learned location of Storage (-9) 1715 | -9/Mines | Joined a pair of Derelicts in attacking an 0b10 outpost 1985 | -9/Mines | Learned Materials terminal intel 2413 | -9/Mines | Found a hidden stash of uninstalled traps 2705 | -9/Mines | Discovered exit to Materials (range 7) 2857 | -9/Mines | Entered Exiles 2893 | -9/Exiles | Met 8R-AWN 2911 | -9/Exiles | Met EX-HEX 2965 | -9/Exiles | Met EX-DEC 3045 | -9/Exiles | Discovered new exit (range 14) 3125 | -9/Exiles | Met EX-BIN 3181 | -9/Exiles | Discovered new exit (range 14) 3193 | -9/Exiles | Entered Mines 3327 | -8/Mines | Discovered exit to Materials (range 12) 3348 | -8/Mines | Core integrity fell below 50% 3354 | -8/Mines | Entered Materials 3354 | -8/Materials | Evolved 2 slots: Utility x2 3355 | -8/Materials | Loaded intel: 12 terminal locations 3378 | -8/Materials | Lost 3 parts (1p1n1u) 3568 | -8/Materials | Identified exit to Factory 3715 | -8/Materials | Entered Factory 3715 | -7/Factory | Evolved 2 slots: Utility x2 4295 | -7/Factory | Discovered new exit (range 10) 4399 | -7/Factory | Identified exit to Lower Caves 4574 | -7/Factory | Entered Lower Caves 4620 | -7/Lower Caves | Spotted B-75 Beast 5060 | -7/Lower Caves | Attracted the attention of an 0b10 checkpoint 5137 | -7/Lower Caves | Lost 3 parts (2u1w) 5178 | -7/Lower Caves | Discovered new exit (range 12) 5214 | -7/Lower Caves | Acquired the password to a Derelict Tinkerer's latest research 5225 | -7/Lower Caves | Found Prototype Special Weapon 5348 | -7/Lower Caves | Entered another Lower Caves area 5490 | -7/Lower Caves | Learned location of Extension (-6) 5504 | -7/Lower Caves | Identified Molecular Deconstructor 5558 | -7/Lower Caves | Encountered a Warlord checkpoint 5679 | -7/Lower Caves | Discovered new exit (range 4) 5740 | -7/Lower Caves | Learned Factory machine intel 6136 | -7/Lower Caves | Entered Zion 6273 | -7/Zion | Discovered new exit (range 14) 6543 | -7/Zion | Given the Hacking Drone Bay 6543 | -7/Zion | Found Prototype Device 6564 | -7/Zion | Build established: Derelict-Mutant 6578 | -7/Zion | Learned location of Data Miner (-6) 6848 | -7/Zion | Given A8's code to call for help 6990 | -7/Zion | Learned location of Testing (-2) 7201 | -7/Zion | Entered Proximity Caves 7604 | -6/Proximity Caves | Spotted B-75 Beast 8431 | -6/Proximity Caves | Received a Behemoth hack from an annoying Tinkerer 8519 | -6/Proximity Caves | Identified Hacking Drone Bay 8555 | -6/Proximity Caves | Discovered new exit (range 5) 8625 | -6/Proximity Caves | Learned Factory garrison access intel 8706 | -6/Proximity Caves | Learned location of 1 exit from Factory 8774 | -6/Proximity Caves | Entered Factory 8774 | -6/Factory | Evolved 2 slots: Utility x2 8775 | -6/Factory | Identified exit to Factory 8776 | -6/Factory | Loaded intel: 280 machine locations 8777 | -6/Factory | Loaded intel: 4 garrison access locations 9471 | -6/Factory | Build established: Hacker-Mutant 9562 | -6/Factory | Discovered new exit (range 21) 9576 | -6/Factory | Spotted B-75 Beast 9806 | -6/Factory | Identified exit to Lower Caves 9806 | -6/Factory | Identified exit to Extension 10032 | -6/Factory | Entered Extension 10206 | -6/Extension | Lost 4 parts (4u) 10234 | -6/Extension | Rescued a captive Derelict 10265 | -6/Extension | Rescued a captive Derelict 10438 | -6/Extension | Rescued A7 10521 | -6/Extension | Spotted B-75 Beast 10536 | -6/Extension | Spotted B-75 Beast 10564 | -6/Extension | Allies destroyed B-75 Beast 10586 | -6/Extension | Allies destroyed B-75 Beast 10635 | -6/Extension | Rescued a captive Derelict 10734 | -6/Extension | Rescued a captive Derelict 10735 | -6/Extension | Rescued a captive Derelict 10840 | -6/Extension | Found Hvy. Insulated Plating 10907 | -6/Extension | Extracted ID and sensor layout for unrecognized location from A7's data core 10945 | -6/Extension | Rescued a captive Derelict 10946 | -6/Extension | Rescued a captive Derelict 10983 | -6/Extension | Rescued a captive Derelict 10993 | -6/Extension | Rescued a captive Derelict 10998 | -6/Extension | Rescued a captive Derelict 11000 | -6/Extension | Rescued a captive Derelict 11000 | -6/Extension | Rescued a captive Derelict 11035 | -6/Extension | Discovered exit to Factory (range 10) 11037 | -6/Extension | Discovered new exit (range 6) 11057 | -6/Extension | Entered Cetus 11057 | -6/Cetus | Accompanied by 13 allies 11073 | -6/Cetus | Spotted Cetus Guard 11076 | -6/Cetus | Spotted Cetus Guard 11077 | -6/Cetus | Spotted Cetus Guard 11079 | -6/Cetus | Spotted Cetus Guard 11094 | -6/Cetus | Allies destroyed Cetus Guard 11097 | -6/Cetus | Destroyed Cetus Guard 11101 | -6/Cetus | Allies destroyed Cetus Guard 11103 | -6/Cetus | Allies destroyed Cetus Guard 11221 | -6/Cetus | Discovered new exit (range 20) 11256 | -6/Cetus | Entered Archives 11256 | -6/Archives | Accompanied by 5 allies 11347 | -6/Archives | Discovered new exit (range 20) 11372 | -6/Archives | Build established: Mutant 11422 | -6/Archives | Discovered new exit (range 18) 11443 | -6/Archives | Discovered exit to Factory (range 19) 11546 | -6/Archives | Unable to access archive contents 11561 | -6/Archives | Unable to access archive contents 11617 | -6/Archives | Unable to access archive contents 11665 | -6/Archives | Entered Hub_04(d) 11665 | -6/Hub_04(d) | Accompanied by 1 ally 11680 | -6/Hub_04(d) | Discovered exit to Factory (range 24) 11784 | -6/Hub_04(d) | Build established: Hacker-Mutant 11834 | -6/Hub_04(d) | Network Hub disabled 11834 | -6/Hub_04(d) | Spotted B-75 Beast 11843 | -6/Hub_04(d) | Entered Factory 11843 | -5/Factory | Evolved 2 slots: Propulsion x2 11898 | -5/Factory | Discovered new exit (range 49) 11930 | -5/Factory | Allied Derelicts emerged from ambush trap array 11989 | -5/Factory | Identified exit to Upper Caves 11990 | -5/Factory | Entered Upper Caves 12060 | -5/Upper Caves | Attracted the attention of an 0b10 checkpoint 12157 | -5/Upper Caves | Spotted B-75 Beast 12235 | -5/Upper Caves | Destroyed B-75 Beast 12839 | -5/Upper Caves | Build established: Scavenger-Mutant 13013 | -5/Upper Caves | Learned location of Armory (-4) 13221 | -5/Upper Caves | Discovered new exit (range 19) 13248 | -5/Upper Caves | Identified exit to Upper Caves 13495 | -5/Upper Caves | Entered another Upper Caves area 13554 | -5/Upper Caves | Discovered new exit (range 54) 13836 | -5/Upper Caves | Spotted B-75 Beast 14050 | -5/Upper Caves | Lost 11 parts (2p3n4u2w) 14481 | -5/Upper Caves | Build established: Scavenger-Assassin 14497 | -5/Upper Caves | Discovered new exit (range 5) 14500 | -5/Upper Caves | Identified exit to Zhirov 14567 | -5/Upper Caves | Entered Zhirov 14567 | -5/Zhirov | Discovered new exit (range 3) 14586 | -5/Zhirov | Met Zhirov 14604 | -5/Zhirov | Learned location of Quarantine (-3) 14604 | -5/Zhirov | Learned location of Command (-1) 14625 | -5/Zhirov | Zhirov requested help retrieving the SGEMP Prototype 14646 | -5/Zhirov | Found Alien Artifact 14646 | -5/Zhirov | Identified Integrated Reactor 14646 | -5/Zhirov | Installed Integrated Reactor, increased core energy generation (+10) 14663 | -5/Zhirov | Found Alien Artifact 14971 | -5/Zhirov | Build established: Hacker-Mutant 15120 | -5/Zhirov | Identified exit to Proximity Caves 15123 | -5/Zhirov | Entered Proximity Caves 15154 | -4/Proximity Caves | Learned location of 1 exit from Upper Caves 15419 | -4/Proximity Caves | Build established: Hacker-Skirmisher 15426 | -4/Proximity Caves | Learned Research stockpile data 15630 | -4/Proximity Caves | Attracted the attention of an 0b10 outpost 15738 | -4/Proximity Caves | Core integrity fell below 50% 15747 | -4/Proximity Caves | Spotted B-86 Titan 15767 | -4/Proximity Caves | Lost 11 parts (4n5u2w) 15770 | -4/Proximity Caves | Attracted the attention of an 0b10 checkpoint 15775 | -4/Proximity Caves | Core integrity fell below 20% 15838 | -4/Proximity Caves | Discovered new exit (range 17) 15846 | -4/Proximity Caves | Identified exit to Factory 15856 | -4/Proximity Caves | Entered Factory 15856 | -4/Factory | Evolved 2 slots: Propulsion x2 15990 | -4/Factory | Discovered new exit (range 17) 16001 | -4/Factory | Build established: Hacker-Mutant 16020 | -4/Factory | Discovered new exit (range 20) 16030 | -4/Factory | Identified exit to Upper Caves 16030 | -4/Factory | Identified exit to Armory 16212 | -4/Factory | Entered Armory 16266 | -4/Armory | Spotted B-86 Titan 16279 | -4/Armory | Identified Transdimensional Reconstructor 16279 | -4/Armory | Warped through subspace to slip node 16279 | -4/Armory | Discovered new exit (range 1) 16279 | -4/Armory | Identified exit to Lab 16280 | -4/Armory | Entered Lab 16280 | -4/Lab | Discovered new exit (range 9) 16283 | -4/Lab | Identified exit to Research 16284 | -4/Lab | Hidden lab's door opened automatically 16284 | -4/Lab | Sensor layout match revealed 16285 | -4/Lab | Gained access to the hidden lab's interior 16301 | -4/Lab | Build established: Hacker-Scout 16322 | -4/Lab | Unable to decrypt terminal 16322 | -4/Lab | Unable to decrypt terminal 16337 | -4/Lab | Found Integrated Reactor 16337 | -4/Lab | Installed Integrated Reactor, increased core energy generation (+10) 16342 | -4/Lab | Found Transdimensional Reconstructor 16348 | -4/Lab | Found Alien Artifact 16359 | -4/Lab | Found Prototype Device 16359 | -4/Lab | Identified AEGIS Remote Shield 16395 | -4/Lab | Found Prototype Hackware 16397 | -4/Lab | Identified Deep Network Scanner 16399 | -4/Lab | Found Prototype Energy Cannon 16408 | -4/Lab | Unable to decrypt terminal 16411 | -4/Lab | Identified Warp Cannon 16414 | -4/Lab | Found Prototype Special Weapon 16417 | -4/Lab | Identified Gui. Remote Datajack 16440 | -4/Lab | Found Alien Artifact 16468 | -4/Lab | Detected by scanners 16471 | -4/Lab | Entered Research 16471 | -3/Research | Evolved 2 slots: Utility x2 16478 | -3/Research | Identified exit to Quarantine 16495 | -3/Research | Identified Core Regenerator 16495 | -3/Research | Identified Core Reset Matrix 16640 | -3/Research | Intercept squad dispatched 16655 | -3/Research | Spotted Tracker 16667 | -3/Research | Destroyed Tracker 16723 | -3/Research | Spotted Combat Programmer 16758 | -3/Research | Spotted B-86 Titan 16780 | -3/Research | Entered Quarantine 16785 | -3/Quarantine | Found Alien Artifact 16785 | -3/Quarantine | Identified Phase Armor 16937 | -3/Quarantine | Identified exit to Research 17062 | -3/Quarantine | Found Core Reset Matrix 17093 | -3/Quarantine | Build established: Wizard-Assassin 17125 | -3/Quarantine | Found Transdimensional Reconstructor 17134 | -3/Quarantine | Found Transdimensional Reconstructor 17137 | -3/Quarantine | Found Transdimensional Reconstructor 17141 | -3/Quarantine | Found Alien Artifact 17159 | -3/Quarantine | Found Alien Artifact 17163 | -3/Quarantine | Found Alien Artifact 17166 | -3/Quarantine | Found Alien Artifact 17186 | -3/Quarantine | Scanned by Researcher 17223 | -3/Quarantine | Warped through subspace 17225 | -3/Quarantine | Identified Dimensional Node Initializer (x3) 17225 | -3/Quarantine | Initialized slip node 17360 | -3/Quarantine | Identified Hpw. Transdimensional Reconstructor 17360 | -3/Quarantine | Warped through subspace to slip node 17444 | -3/Quarantine | Core integrity fell below 50% 17481 | -3/Quarantine | Core integrity fell below 20% 17490 | -3/Quarantine | Warped through subspace to slip node 17506 | -3/Quarantine | Used Core Regenerator, restored core integrity (+325) 17527 | -3/Quarantine | Warped through subspace to slip node 17545 | -3/Quarantine | Garrison activated, responded to threat 17560 | -3/Quarantine | Found Alien Artifact 17560 | -3/Quarantine | Identified Terrabomb 17560 | -3/Quarantine | Used Terrabomb 17570 | -3/Quarantine | Entered Research 17570 | -2/Research | Evolved 2 slots: Utility x2 17599 | -2/Research | Found Prototype Device 17599 | -2/Research | Identified Exp. Thermal Shield 17604 | -2/Research | Discovered new exit (range 4) 17606 | -2/Research | Identified exit to Access 17607 | -2/Research | Entered Access 17607 | -1/Access | Evolved 2 slots: Utility x2 17653 | -1/Access | Build established: Wizard-Mutant 17801 | -1/Access | Intercept squad dispatched 17806 | -1/Access | Spotted Tracker 17806 | -1/Access | Warped through subspace 17831 | -1/Access | Spotted B-99 Colossus 17833 | -1/Access | Lost 3 parts (3u) 17847 | -1/Access | Spotted B-99 Colossus 17851 | -1/Access | Identified exit to Command 17882 | -1/Access | Lost 6 parts (5u1w) 17921 | -1/Access | Core integrity fell below 50% 17950 | -1/Access | Core integrity fell below 20% 17976 | -1/Access | Spotted Tracker 17988 | -1/Access | Destroyed by G-73 Enforcer with Heavy Laser Last Messages --------------- 17918_ P-80 Master unfolds itself. 17918_ Acquired Lrn. Terrain Scanner. 17919_ Cmb. Antigrav System destroyed. 17921_ Gyrokinetic Inverter destroyed. 17922_ S-43 Plague IFF system glitched. 17930_ Gyrokinetic Inverter destroyed. 17938_ System corrupted: Energy discharge (-35). 17943_ Gyrokinetic Inverter destroyed. 17947_ Cmb. Antigrav System destroyed. 17962_ Gyrokinetic Inverter destroyed. 17963_ Imp. Hacking Suite destroyed. 17966_ S-43 Plague IFF system glitched. 17970_ Lrn. Terrain Scanner destroyed. 17978_ Triggered Segregator Trap. 17978_ Arcs of energy rise from the floor. 17979_ Adv. Terrain Scan Processor destroyed. 17981_ System corrupted: Matter fused (-5). 17987_ U-05 Engineer destroyed. 17988_ Biometal Heavy Treads destroyed. 17988_ Deep Network Scanner destroyed. Map ----- +----------------------------------------------------+ | ??? "" ???????????????????????????????????????? | | ??? "" ???????????????????????????????????????? | | ???? ????????????????????????????????????????? | | ???? ????????????????????????????????????????? | | ????? ?????????????????????????????????????????? | | ????? ?????????????????????????????????????????? | | ######+########+#####????????????????????????????? | | +????????????????????????????? | | ##### #####????????????????????????????? | | #??????????????????????????????????????? | | #??????????????????????????????????????? | | #??????????????????????????????????????? | | #??????????????????????????????????????? | | #??????????????????????????????????????? | | ###########??????????????????????????????????????? | | ????????????????########+##????????????????????? | | ??????????????# ????????????????????? | | " ????????????# ????????????????????? | | """ ??????????# ?????????????????????? | | "" #?????????# ?????????????????????? | | " #?????????# ?????????????????????? | | #?????????# t??????????????????????? | | #?????????# ??????????????????????? | | #########?????????# #??????????????????????? | | ??????????????????# #??????????????????????? | | ???????######## ### @#???##+#####???????????? | | ???? #???! ???????????? | | ???????############ #?? ????????????? | | ?????? ??# #?? ????????????? | | ?????? ?# =%#? "" ???????????? | | ?????# ?# s#? "" ?????????????? | | ??????"" # g # """""" ????????????? | | ??????"" # g s# """""" #??????????? | | ??????"" = + g + "" #??????????? | | ?????#G " #gg # "" #??????????? | | ???????" """" # s # #??????????? | | ??????????""""" ?# #? #??????????? | | ????????????""""??# #? #??????????? | | ????????????"""???# #?? #??????????? | | ????????????" ????# #??##########??????????? | | ?#?????##?????????# #??????????????????????? | | ???#??????????????# #??????????????????????? | | ????? ??? ?#??????# #??????????????????????? | | ?#??? ???? ???? ??# ss #??????????????????????? | | #?#????????? ?????# ^ #??????????????????????? | | ???? ?? ??????? ?# ss #??????????????????????? | | ? ?????????? ? ??# #??????????????????????? | | ???# ??? ??# ???? # #???##########?????????? | | ???????????? ????# # ? #?????????? | | ???# ???? ?? ?? ??# #?? #?????????? | +----------------------------------------------------+ Best States ------------- Heat Dissipation 71 Energy Generation 45 Energy Capacity 350 Matter Stores 300 Matter Capacity 300 Sight Range 22 Robot Scan Range 16 Terrain Scan Range 24 Terrain Scan Density 210 ECM Strength 2 Additional Mass Support 9 Corruption Containment 8 Armor Coverage 1200 Resistance: KI 25 Resistance: TH 30 Resistance: EX 50 Resistance: EM 30 Core Shielding 30 Propulsion Shielding 33 Weapon Shielding 90 Evasion (%) 75 Targeting Accuracy 6 Recoil Reduction 4 Matter Filtering 50 Salvage Targeting 2 Offensive Hacking 49 Defensive Hacking 33 Item Schematics ----------------- Huge Storage Unit | -6/Extension | Hacked Adv. Signal Interpreter | -6/Extension | Hacked Adv. Sensor Array | -6/Extension | Hacked Adv. Terrain Scanner | -6/Extension | Hacked Adv. Terrain Scan Processor | -6/Extension | Hacked Lgt. Antimatter Reactor | -6/Extension | Hacked Assault Drone Bay | -5/Zhirov | Free Exp. Heat Sink | -5/Zhirov | Free Exp. Optical Array | -5/Zhirov | Free Imp. Arc Thrower | -5/Zhirov | Free Nanoactuators | -3/Research | Hacked Hvy. Hardcell Cannon | -3/Quarantine | Archive Cld. Phase Cannon | -3/Quarantine | Archive Helical Railgun | -3/Quarantine | Archive Robot Schematics ------------------ None Fabricated ------------ Nothing Alien Tech Used ----------------- Integrated Reactor Transdimensional Reconstructor Phase Armor Dimensional Node Initializer High-powered Transdimensional Reconstructor Core Regenerator Terrabomb Achievements -------------- Deconstruction Challenges ------------ None Game ------ Seed InsulatedLobotomyRail Manual? 0 Play Time 04:12:19 Cumulative 173.6 hours Start 2022.03.27 @ 05:29:07 End 2022.03.27 @ 11:49:26 Sessions 3 Manual Loads 0 Difficulty Rogue Special Mode None Game No. 46 Rogue 46 Adventurer 0 Explorer 0 Win Type - Total 13 Types 7/2/2/1/1/0/0/0/0 Lore% 48 Gallery% 72 Achievement% 62 Wizard Run 0 Options --------- ASCII 0 Keyboard 0 Movement Numpad Keybinds 0 Fullscreen 1 Font 18/TerminusBold Map View 76x50 Tactical HUD 1 Map Filters NONE Filters NONE Steam 1 RUN: 00918571-d845-40d4-9c28-c716214f9df0